fUST/lending_fUST_20240203
["ID","MTS","AMOUNT","RATE_DAILY","PERIOD"]
[313188435,1706903445232,-500.0,0.00028219,2]
[313188436,1706903445241,-1890.33,0.00028219,2]
[313188437,1706903445250,-832.68,0.00028219,2]
[313188438,1706903445259,-363.38,0.00028219,2]
[313188439,1706903445268,-500.0,0.00028219,2]
[313188440,1706903445277,-639.6251531,0.00028276,2]
[313188441,1706903445286,-74199.29153005,0.00028276,2]
[313188485,1706903629923,1764.73099551,0.0001631,2]
[313188486,1706903645691,662.46840951,0.000125,2]
[313188562,1706904633440,-155.02015262,0.00023942,4]
[313188563,1706904633450,-1235.3694769,0.00023943,2]
[313188564,1706904633459,-913.57824754,0.00023944,2]
[313188606,1706904638232,-2.36281601,0.00023944,2]
[313188608,1706904638242,-1792.76690819,0.00023956,2]
[313188611,1706904638251,-1583.70312241,0.0002451,2]
[313188613,1706904638261,-90.0382447,0.0002451,2]
[313188615,1706904638272,-181.63434101,0.0002451,2]
[313188617,1706904638281,-1445.30006601,0.00025304,2]
[313188662,1706904641426,-2275.1490241,0.00025304,2]
[313188685,1706904643167,-21179.55090989,0.00025304,2]
[313188686,1706904643177,-181.771429,0.000269,2]
[313188687,1706904643187,-500.0,0.00027397,2]
[313188688,1706904643197,-500.0,0.00027397,2]
[313188689,1706904643206,-500.0,0.00027397,2]
[313188690,1706904643215,-500.0,0.00027397,2]
[313188691,1706904643225,-500.0,0.00027397,2]
[313188692,1706904643234,-500.0,0.00027397,2]
[313188693,1706904643243,-500.0,0.00027397,2]
[313188694,1706904643252,-500.0,0.00027397,2]
[313188695,1706904643262,-500.0,0.00027397,2]
[313188696,1706904643272,-500.0,0.00027397,2]
[313188697,1706904643281,-500.0,0.00027397,2]
[313188698,1706904643290,-500.0,0.00027397,2]
[313188699,1706904643299,-537.78874065,0.00027397,2]
[313188700,1706904643309,-500.0,0.00027397,2]
[313188701,1706904643318,-500.0,0.00027397,2]
[313188702,1706904643334,-500.0,0.00027397,2]
[313188703,1706904643345,-500.0,0.00027397,2]
[313188704,1706904643355,-500.0,0.00027397,2]
[313188705,1706904643366,-548.87,0.00027397,2]
[313188706,1706904643375,-500.0,0.00027397,2]
[313188707,1706904643384,-835.03,0.00027397,2]
[313188708,1706904643395,-709.62,0.00027397,2]
[313188709,1706904643405,-500.0,0.00027397,2]
[313188710,1706904643414,-389.82,0.00027397,2]
[313188711,1706904643423,-500.0,0.00027397,2]
[313188712,1706904643433,-500.0,0.00027397,2]
[313188713,1706904643442,-533.44,0.00027397,2]
[313188714,1706904643451,-500.0,0.00027397,2]
[313188715,1706904643460,-966.87,0.00027397,2]
[313188716,1706904643470,-922.53,0.00027397,2]
[313188717,1706904643479,-500.0,0.00027397,2]
[313188718,1706904643488,-500.0,0.00027397,2]
[313188719,1706904643497,-1119.57,0.00027397,2]
[313188720,1706904643506,-500.0,0.00027397,2]
[313188721,1706904643515,-500.0,0.00027397,2]
[313188722,1706904643525,-817.93,0.00027397,2]
[313188723,1706904643535,-2243.53,0.00027397,2]
[313188724,1706904643544,-500.0,0.00027397,2]
[313188725,1706904643552,-500.0,0.00027397,2]
[313188726,1706904643561,-1836.16,0.00027397,2]
[313188727,1706904643571,-500.0,0.00027397,2]
[313188728,1706904643580,-500.0,0.00027397,2]
[313188729,1706904643589,-3388.2,0.00027397,2]
[313188730,1706904643598,-500.0,0.00027397,2]
[313188731,1706904643607,-502.68,0.00027397,2]
[313188732,1706904643617,-500.0,0.00027397,2]
[313188733,1706904643626,-500.0,0.00027397,2]
[313188734,1706904643635,-500.0,0.00027397,2]
[313188735,1706904643644,-500.0,0.00027397,2]
[313188736,1706904643654,-1644.25,0.00027397,2]
[313188737,1706904643663,-595.58,0.00027397,2]
[313188738,1706904643672,-782.38,0.00027397,2]
[313188739,1706904643680,-500.0,0.00027397,2]
[313188740,1706904643690,-826.82,0.00027661,3]
[313188741,1706904643699,-500.0,0.00027671,2]
[313188742,1706904643709,-500.0,0.00027671,2]
[313188743,1706904643717,-500.0,0.00027671,2]
[313188744,1706904643726,-500.0,0.00027671,2]
[313188745,1706904643735,-262.64,0.00027671,2]
[313188746,1706904643744,-500.0,0.00027671,2]
[313188747,1706904643753,-500.0,0.00027671,2]
[313188748,1706904643763,-308.69,0.00027671,2]
[313188749,1706904643772,-500.0,0.00027671,2]
[313188750,1706904643782,-835.03,0.00027671,2]
[313188751,1706904643791,-709.62,0.00027671,2]
[313188752,1706904643800,-533.44,0.00027671,2]
[313188753,1706904643810,-966.87,0.00027671,2]
[313188754,1706904643819,-922.53,0.00027671,2]
[313188755,1706904643828,-500.0,0.00027671,2]
[313188756,1706904643838,-500.0,0.00027671,2]
[313188757,1706904643848,-1119.57,0.00027671,2]
[313188758,1706904643857,-500.0,0.00027671,2]
[313188759,1706904643866,-500.0,0.00027671,2]
[313188760,1706904643876,-817.93,0.00027671,2]
[313188761,1706904643885,-2243.53,0.00027671,2]
[313188762,1706904643894,-500.0,0.00027671,2]
[313188763,1706904643903,-500.0,0.00027671,2]
[313188764,1706904643912,-1836.16,0.00027671,2]
[313188765,1706904643921,-500.0,0.00027671,2]
[313188766,1706904643930,-3388.2,0.00027671,2]
[313188767,1706904643939,-500.0,0.00027671,2]
[313188768,1706904643949,-502.68,0.00027671,2]
[313188769,1706904643957,-500.0,0.00027671,2]
[313188770,1706904643966,-500.0,0.00027671,2]
[313188771,1706904643975,-1644.25,0.00027671,2]
[313188772,1706904643984,-595.58,0.00027671,2]
[313188773,1706904643994,-782.38,0.00027671,2]
[313188774,1706904644002,-180.56266,0.00027714,2]
[313188775,1706904644012,-200.0,0.00027834,15]
[313188776,1706904644021,-2999.91464333,0.000279,4]
[313188777,1706904644030,-223.08167657,0.00027945,2]
[313188778,1706904644042,-500.0,0.00027945,2]
[313188779,1706904644052,-500.0,0.00027945,2]
[313188780,1706904644063,-500.0,0.00027945,2]
[313188781,1706904644073,-500.0,0.00027945,2]
[313188782,1706904644085,-500.0,0.00027945,2]
[313188783,1706904644095,-835.03,0.00027945,2]
[313188784,1706904644105,-709.62,0.00027945,2]
[313188785,1706904644115,-533.44,0.00027945,2]
[313188786,1706904644125,-966.87,0.00027945,2]
[313188787,1706904644136,-922.53,0.00027945,2]
[313188788,1706904644145,-500.0,0.00027945,2]
[313188789,1706904644155,-500.0,0.00027945,2]
[313188790,1706904644165,-1119.57,0.00027945,2]
[313188791,1706904644175,-500.0,0.00027945,2]
[313188792,1706904644186,-500.0,0.00027945,2]
[313188793,1706904644195,-817.93,0.00027945,2]
[313188794,1706904644206,-2243.53,0.00027945,2]
[313188795,1706904644216,-500.0,0.00027945,2]
[313188796,1706904644226,-1836.16,0.00027945,2]
[313188797,1706904644237,-500.0,0.00027945,2]
[313188798,1706904644249,-3388.2,0.00027945,2]
[313188799,1706904644258,-500.0,0.00027945,2]
[313188800,1706904644268,-502.68,0.00027945,2]
[313188801,1706904644278,-500.0,0.00027945,2]
[313188802,1706904644287,-500.0,0.00027945,2]
[313188803,1706904644298,-1644.25,0.00027945,2]
[313188804,1706904644408,-595.58,0.00027945,2]
[313188805,1706904644421,-782.38,0.00027945,2]
[313188806,1706904644430,-459.20413887,0.00028,3]
[313188807,1706904644440,-1381.51598192,0.00028,2]
[313188808,1706904644449,-1922.38112409,0.00028,2]
[313188809,1706904644458,-1723.2026182,0.00028,4]
[313188810,1706904644468,-18455.08327352,0.00028,4]
[313188811,1706904644477,-45279.63397892,0.00028176,2]
[313188812,1706904644487,-500.0,0.00028219,2]
[313188813,1706904644496,-500.0,0.00028219,2]
[313188814,1706904644508,-500.0,0.00028219,2]
[313188815,1706904644517,-398.79,0.00028219,2]
[313188816,1706904644526,-500.0,0.00028219,2]
[313188817,1706904644535,-835.03,0.00028219,2]
[313188818,1706904644544,-709.62,0.00028219,2]
[313188819,1706904644553,-533.44,0.00028219,2]
[313188820,1706904644562,-966.87,0.00028219,2]
[313188821,1706904644572,-922.53,0.00028219,2]
[313188822,1706904644581,-500.0,0.00028219,2]
[313188823,1706904644590,-500.0,0.00028219,2]
[313188824,1706904644600,-1119.57,0.00028219,2]
[313188825,1706904644609,-500.0,0.00028219,2]
[313188826,1706904644618,-500.0,0.00028219,2]
[313188827,1706904644627,-817.93,0.00028219,2]
[313188828,1706904644636,-2243.53,0.00028219,2]
[313188829,1706904644645,-500.0,0.00028219,2]
[313188830,1706904644654,-1836.16,0.00028219,2]
[313188831,1706904644663,-500.0,0.00028219,2]
[313188832,1706904644672,-3388.2,0.00028219,2]
[313188833,1706904644683,-500.0,0.00028219,2]
[313188834,1706904644693,-502.68,0.00028219,2]
[313188835,1706904644704,-500.0,0.00028219,2]
[313188836,1706904644713,-500.0,0.00028219,2]
[313188837,1706904644723,-1644.25,0.00028219,2]
[313188838,1706904644732,-595.58,0.00028219,2]
[313188839,1706904644744,-782.38,0.00028219,2]
[313188840,1706904644753,-155.02325349,0.00028274,2]
[313188841,1706904644764,-2558.63668868,0.00028275,2]
[313188842,1706904644773,-280.25684936,0.00028276,2]
[313188843,1706904644783,-765.40311766,0.00028276,2]
[313188844,1706904644792,-345.92230875,0.00028375,2]
[313188845,1706904644801,-200.0,0.00028375,2]
[313188846,1706904644810,-14655.88124756,0.00028376,2]
[313188847,1706904644819,-151.6056588,0.0002846,2]
[313188848,1706904644829,-838.81206769,0.00028492,2]
[313188849,1706904644838,-500.0,0.00028493,2]
[313188850,1706904644848,-500.0,0.00028493,2]
[313188851,1706904644857,-500.0,0.00028493,2]
[313188852,1706904644867,-835.03,0.00028493,2]
[313188853,1706904644878,-709.62,0.00028493,2]
[313188854,1706904644887,-533.44,0.00028493,2]
[313188855,1706904644896,-966.87,0.00028493,2]
[313188856,1706904644907,-922.53,0.00028493,2]
[313188857,1706904644917,-500.0,0.00028493,2]
[313188858,1706904644927,-500.0,0.00028493,2]
[313188859,1706904644936,-1119.57,0.00028493,2]
[313188860,1706904644946,-500.0,0.00028493,2]
[313188861,1706904644957,-500.0,0.00028493,2]
[313188862,1706904644968,-817.93,0.00028493,2]
[313188863,1706904644977,-2243.53,0.00028493,2]
[313188864,1706904644986,-500.0,0.00028493,2]
[313188865,1706904644995,-1836.16,0.00028493,2]
[313188866,1706904645004,-500.0,0.00028493,2]
[313188867,1706904645014,-3388.2,0.00028493,2]
[313188868,1706904645023,-500.0,0.00028493,2]
[313188869,1706904645032,-502.68,0.00028493,2]
[313188870,1706904645041,-291.35081524,0.00028493,2]
[313188871,1706904645050,-500.0,0.00028493,2]
[313188872,1706904645060,-1644.25,0.00028493,2]
[313188873,1706904645069,-595.58,0.00028493,2]
[313188874,1706904645078,-782.38,0.00028493,2]
[313188875,1706904645088,-227.79999999,0.000285,2]
[313188876,1706904645097,-168.10250844,0.00028565,2]
[313188877,1706904645106,-176.80835083,0.00028587,2]
[313188878,1706904645115,-521.0,0.00028664,2]
[313188879,1706904645124,-157.26645877,0.00028665,2]
[313188880,1706904645133,-1032.02745041,0.00028665,2]
[313188881,1706904645142,-213.46268132,0.00028665,2]
[313188882,1706904645152,-650.70000447,0.00028665,2]
[313188883,1706904645161,-1996.50298693,0.00028665,2]
[313188884,1706904645170,-10555.9279154,0.00028665,2]
[313188885,1706904645179,-500.0,0.00028665,2]
[313188886,1706904645189,-243.43578923,0.00028665,2]
[313188887,1706904645198,-8731.65656299,0.00028666,2]
[313188888,1706904645207,-20370.47813365,0.00028667,7]
[313188889,1706904645216,-154.98112193,0.0002876,2]
[313188890,1706904645225,-500.0,0.00028767,2]
[313188891,1706904645234,-500.0,0.00028767,2]
[313188892,1706904645244,-500.0,0.00028767,2]
[313188893,1706904645253,-835.03,0.00028767,2]
[313188894,1706904645261,-709.62,0.00028767,2]
[313188895,1706904645270,-533.44,0.00028767,2]
[313188896,1706904645280,-966.87,0.00028767,2]
[313188897,1706904645290,-922.53,0.00028767,2]
[313188898,1706904645299,-500.0,0.00028767,2]
[313188899,1706904645308,-500.0,0.00028767,2]
[313188900,1706904645318,-1119.57,0.00028767,2]
[313188901,1706904645331,-500.0,0.00028767,2]
[313188902,1706904645341,-500.0,0.00028767,2]
[313188903,1706904645350,-817.93,0.00028767,2]
[313188904,1706904645359,-2243.53,0.00028767,2]
[313188905,1706904645369,-500.0,0.00028767,2]
[313188906,1706904645379,-1836.16,0.00028767,2]
[313188907,1706904645389,-500.0,0.00028767,2]
[313188908,1706904645398,-3388.2,0.00028767,2]
[313188909,1706904645407,-500.0,0.00028767,2]
[313188910,1706904645417,-502.68,0.00028767,2]
[313188911,1706904645427,-500.0,0.00028767,2]
[313188912,1706904645436,-1644.25,0.00028767,2]
[313188913,1706904645446,-595.58,0.00028767,2]
[313188914,1706904645456,-782.38,0.00028767,2]
[313188915,1706904645468,-22538.5362242,0.000288,4]
[313188916,1706904645481,-575.66263779,0.00028941,2]
[313188917,1706904645494,-155.48771579,0.00029,2]
[313188918,1706904645506,-278.60824485,0.00029,2]
[313188919,1706904645519,-154.98112195,0.00029038,2]
[313188920,1706904645531,-360.08701401,0.00029041,7]
[313188921,1706904645542,-500.0,0.00029041,2]
[313188922,1706904645552,-500.0,0.00029041,2]
[313188923,1706904645563,-500.0,0.00029041,2]
[313188924,1706904645575,-835.03,0.00029041,2]
[313188925,1706904645586,-709.62,0.00029041,2]
[313188926,1706904645597,-533.44,0.00029041,2]
[313188927,1706904645608,-966.87,0.00029041,2]
[313188928,1706904645620,-922.53,0.00029041,2]
[313188929,1706904645631,-500.0,0.00029041,2]
[313188930,1706904645643,-500.0,0.00029041,2]
[313188932,1706904645654,-1119.57,0.00029041,2]
[313188934,1706904645664,-500.0,0.00029041,2]
[313188936,1706904645675,-500.0,0.00029041,2]
[313188939,1706904645687,-817.93,0.00029041,2]
[313188941,1706904645697,-2243.53,0.00029041,2]
[313188942,1706904645707,-500.0,0.00029041,2]
[313188945,1706904645717,-1836.16,0.00029041,2]
[313188947,1706904645728,-500.0,0.00029041,2]
[313188949,1706904645739,-3388.2,0.00029041,2]
[313188951,1706904645750,-500.0,0.00029041,2]
[313188954,1706904645761,-502.68,0.00029041,2]
[313188957,1706904645772,-500.0,0.00029041,2]
[313188960,1706904645782,-1644.25,0.00029041,2]
[313188963,1706904645794,-595.58,0.00029041,2]
[313188965,1706904645804,-782.38,0.00029041,2]
[313188967,1706904645816,-1000.0,0.00029221,2]
[313188969,1706904645827,-176.63027167,0.00029314,2]
[313188972,1706904645839,-309.9690031,0.00029314,2]
[313188973,1706904645849,-739.78365226,0.00029314,2]
[313188974,1706904645859,-415.69,0.00029315,2]
[313188975,1706904645869,-500.0,0.00029315,2]
[313188976,1706904645880,-500.0,0.00029315,2]
[313188977,1706904645893,-835.03,0.00029315,2]
[313188978,1706904645905,-709.62,0.00029315,2]
[313188979,1706904645915,-533.44,0.00029315,2]
[313188980,1706904645927,-966.87,0.00029315,2]
[313188981,1706904645939,-922.53,0.00029315,2]
[313188982,1706904645951,-500.0,0.00029315,2]
[313188983,1706904645962,-500.0,0.00029315,2]
[313188985,1706904645972,-1119.57,0.00029315,2]
[313188987,1706904645981,-500.0,0.00029315,2]
[313188988,1706904645992,-500.0,0.00029315,2]
[313188989,1706904646003,-817.93,0.00029315,2]
[313188990,1706904646013,-2243.53,0.00029315,2]
[313188991,1706904646023,-500.0,0.00029315,2]
[313188993,1706904646034,-1836.16,0.00029315,2]
[313188994,1706904646045,-500.0,0.00029315,2]
[313188995,1706904646058,-3388.2,0.00029315,2]
[313188996,1706904646070,-500.0,0.00029315,2]
[313188997,1706904646083,-502.68,0.00029315,2]
[313188998,1706904646094,-500.0,0.00029315,2]
[313188999,1706904646105,-1644.25,0.00029315,2]
[313189000,1706904646116,-595.58,0.00029315,2]
[313189001,1706904646128,-782.38,0.00029315,2]
[313189002,1706904646138,-1000.0,0.00029316,2]
[313189003,1706904646148,-1000.0,0.00029317,2]
[313189004,1706904646157,-1000.0,0.00029322,2]
[313189005,1706904646167,-1000.0,0.00029332,2]
[313189006,1706904646177,-1000.0,0.0002934,2]
[313189007,1706904646187,-1000.0,0.00029347,2]
[313189009,1706904646198,-424.11181522,0.00029365,2]
[313189010,1706904646208,-1000.0,0.00029393,2]
[313189011,1706904646219,-1000.0,0.00029399,2]
[313189012,1706904646230,-1000.0,0.00029405,2]
[313189013,1706904646240,-1000.0,0.00029413,2]
[313189015,1706904646250,-1000.0,0.00029422,2]
[313189016,1706904646261,-1000.0,0.00029423,2]
[313189017,1706904646272,-1000.0,0.00029429,2]
[313189018,1706904646282,-8666.96784031,0.0002945,4]
[313189019,1706904646291,-1000.0,0.00029474,2]
[313189020,1706904646301,-1000.0,0.00029481,2]
[313189021,1706904646311,-500.0,0.000295,2]
[313189022,1706904646322,-1000.0,0.00029516,2]
[313189023,1706904646334,-1000.0,0.00029519,2]
[313189024,1706904646345,-1000.0,0.00029519,2]
[313189025,1706904646355,-300.81131424,0.00029531,2]
[313189027,1706904646366,-280.88932072,0.00029587,2]
[313189029,1706904646376,-500.0,0.00029589,2]
[313189031,1706904646386,-500.0,0.00029589,2]
[313189033,1706904646398,-835.03,0.00029589,2]
[313189034,1706904646408,-709.62,0.00029589,2]
[313189035,1706904646418,-533.44,0.00029589,2]
[313189036,1706904646429,-966.87,0.00029589,2]
[313189037,1706904646438,-922.53,0.00029589,2]
[313189038,1706904646449,-500.0,0.00029589,2]
[313189039,1706904646459,-500.0,0.00029589,2]
[313189040,1706904646469,-1119.57,0.00029589,2]
[313189041,1706904646479,-500.0,0.00029589,2]
[313189042,1706904646490,-500.0,0.00029589,2]
[313189043,1706904646501,-817.93,0.00029589,2]
[313189044,1706904646511,-2243.53,0.00029589,2]
[313189045,1706904646521,-500.0,0.00029589,2]
[313189046,1706904646532,-1836.16,0.00029589,2]
[313189047,1706904646542,-500.0,0.00029589,2]
[313189048,1706904646552,-3388.2,0.00029589,2]
[313189049,1706904646562,-500.0,0.00029589,2]
[313189050,1706904646573,-502.68,0.00029589,2]
[313189051,1706904646583,-500.0,0.00029589,2]
[313189052,1706904646594,-1644.25,0.00029589,2]
[313189053,1706904646604,-595.58,0.00029589,2]
[313189054,1706904646614,-782.38,0.00029589,2]
[313189055,1706904646625,-263.23887918,0.0002971,3]
[313189056,1706904646635,-284.02,0.000298,4]
[313189057,1706904646646,-151.0,0.00029862,2]
[313189058,1706904646657,-151.0,0.00029862,2]
[313189059,1706904646668,-151.0,0.00029862,2]
[313189060,1706904646679,-500.0,0.00029863,2]
[313189061,1706904646798,-500.0,0.00029863,2]
[313189062,1706904646811,-835.03,0.00029863,2]
[313189063,1706904646821,-709.62,0.00029863,2]
[313189064,1706904646830,-533.44,0.00029863,2]
[313189065,1706904646841,-966.87,0.00029863,2]
[313189066,1706904646850,-922.53,0.00029863,2]
[313189067,1706904646863,-500.0,0.00029863,2]
[313189068,1706904646872,-500.0,0.00029863,2]
[313189069,1706904646881,-151.0,0.00029863,2]
[313189070,1706904646891,-1119.57,0.00029863,2]
[313189071,1706904646900,-500.0,0.00029863,2]
[313189072,1706904646909,-500.0,0.00029863,2]
[313189073,1706904646917,-817.93,0.00029863,2]
[313189074,1706904646926,-2243.53,0.00029863,2]
[313189075,1706904646935,-500.0,0.00029863,2]
[313189076,1706904646944,-1836.16,0.00029863,2]
[313189077,1706904646953,-500.0,0.00029863,2]
[313189078,1706904646962,-3388.2,0.00029863,2]
[313189079,1706904646971,-158.02354038,0.00029863,2]
[313189080,1706904646980,-502.68,0.00029863,2]
[313189081,1706904646989,-500.0,0.00029863,2]
[313189082,1706904646998,-151.0,0.00029863,2]
[313189083,1706904647007,-1644.25,0.00029863,2]
[313189084,1706904647016,-595.58,0.00029863,2]
[313189085,1706904647025,-782.38,0.00029863,2]
[313189086,1706904647037,-19309.08752701,0.0002999,7]
[313189087,1706904647047,-461.14852648,0.00029999,2]
[313189088,1706904647058,-500.0,0.00029999,2]
[313189089,1706904647068,-500.0,0.00029999,2]
[313189090,1706904647078,-605.87144165,0.00029999,2]
[313189091,1706904647088,-345.40086199,0.0003,3]
[313189092,1706904647097,-176850.27750097,0.0003,30]
[313189093,1706904647112,-1259.38159761,0.0003,30]
[313189094,1706904647123,-678.29005975,0.0003,30]
[313189095,1706904647133,-25710.5,0.0003,30]
[313189096,1706904647155,-4946.1588636,0.0003,30]
[313189177,1706905832298,-823.57965127,0.00023865,2]
[313189179,1706905832308,-155.0294556,0.00023866,4]
[313189181,1706905832317,-500.0,0.00023867,2]
[313189183,1706905832326,-490.99230003,0.00023921,2]
[313189185,1706905832335,-305.31368785,0.00023921,2]
[313189187,1706905832345,-448.19172705,0.00023933,2]
[313189189,1706905832353,-696.0499024,0.00024366,2]
[313189191,1706905832364,-24900.0,0.00024387,2]
[313189193,1706905832373,-166.109927,0.00024734,2]
[313189195,1706905832382,-979.38829266,0.00025267,2]
[313189196,1706905832391,-430.51695446,0.00026,2]
[313189198,1706905832400,-200.0,0.00027005,15]
[313189200,1706905832409,-500.0,0.00027397,2]
[313189202,1706905832419,-500.0,0.00027397,2]
[313189204,1706905832428,-500.0,0.00027397,2]
[313189206,1706905832437,-500.0,0.00027397,2]
[313189208,1706905832446,-500.0,0.00027397,2]
[313189210,1706905832455,-534.97764921,0.00027397,2]
[313189223,1706905832550,-500.0,0.00027397,2]
[313189225,1706905832584,-500.0,0.00027397,2]
[313189227,1706905832593,-500.0,0.00027397,2]
[313189229,1706905832602,-645.14,0.00027397,2]
[313189231,1706905832611,-500.0,0.00027397,2]
[313189233,1706905832621,-500.0,0.00027397,2]
[313189235,1706905832630,-500.0,0.00027397,2]
[313189237,1706905832639,-500.0,0.00027397,2]
[313189239,1706905832648,-500.0,0.00027397,2]
[313189241,1706905832657,-500.0,0.00027397,2]
[313189243,1706905832666,-500.0,0.00027397,2]
[313189245,1706905832675,-500.0,0.00027397,2]
[313189247,1706905832684,-500.0,0.00027397,2]
[313189249,1706905832695,-500.0,0.00027397,2]
[313189251,1706905832704,-500.0,0.00027397,2]
[313189253,1706905832714,-500.0,0.00027397,2]
[313189255,1706905832723,-352.27375048,0.00027397,2]
[313189257,1706905832733,-500.0,0.00027397,2]
[313189259,1706905832742,-500.0,0.00027397,2]
[313189261,1706905832751,-500.0,0.00027397,2]
[313189263,1706905832760,-500.0,0.00027397,2]
[313189265,1706905832771,-500.0,0.00027397,2]
[313189266,1706905832780,-500.0,0.00027397,2]
[313189268,1706905832790,-500.0,0.00027397,2]
[313189270,1706905832799,-500.0,0.00027397,2]
[313189272,1706905832808,-500.0,0.00027397,2]
[313189274,1706905832817,-500.0,0.00027397,2]
[313189276,1706905832827,-500.0,0.00027397,2]
[313189278,1706905832836,-500.0,0.00027397,2]
[313189280,1706905832845,-500.0,0.00027397,2]
[313189282,1706905832854,-763.75,0.00027397,2]
[313189284,1706905832865,-582.02,0.00027397,2]
[313189285,1706905832875,-1306.31,0.00027397,2]
[313189286,1706905832884,-500.0,0.00027397,2]
[313189288,1706905832893,-500.0,0.00027397,2]
[313189289,1706905832903,-500.0,0.00027397,2]
[313189291,1706905832913,-500.0,0.00027397,2]
[313189292,1706905832923,-500.0,0.00027397,2]
[313189294,1706905832934,-673.01,0.00027397,2]
[313189296,1706905832944,-500.0,0.00027397,2]
[313189298,1706905832953,-538.14,0.00027397,2]
[313189299,1706905832962,-500.0,0.00027397,2]
[313189301,1706905832971,-269.33328314,0.00027397,2]
[313189302,1706905832981,-500.0,0.00027397,2]
[313189303,1706905832990,-500.0,0.00027397,2]
[313189304,1706905832999,-66.85917929,0.00027397,2]
[313189305,1706905833012,-433.14082071,0.00027397,2]
[313189306,1706905833021,-500.0,0.00027397,2]
[313189307,1706905833031,-369.76057833,0.00027397,2]
[313189308,1706905833042,-130.23942167,0.00027397,2]
[313189309,1706905833052,-500.0,0.00027397,2]
[313189310,1706905833061,-500.0,0.00027397,2]
[313189311,1706905833072,-143.15258714,0.00027397,2]
[313189312,1706905833084,-356.84741286,0.00027397,2]
[313189313,1706905833093,-500.0,0.00027397,2]
[313189314,1706905833103,-500.0,0.00027397,2]
[313189315,1706905833116,-500.0,0.00027397,2]
[313189316,1706905833126,-500.0,0.00027397,2]
[313189317,1706905833135,-197.92765787,0.00027397,2]
[313189330,1706905838417,-609.08979656,0.00023864,2]
[313189331,1706905838427,-535.66234213,0.00027397,2]
[313189332,1706905838437,-14.20439724,0.00027397,2]
[313189333,1706905838450,-877.38560276,0.00027397,2]
[313189334,1706905838460,-500.0,0.00027397,2]
[313189335,1706905838469,-105.63467237,0.00027397,2]
[313189336,1706905838481,-340.80038775,0.00027397,2]
[313189401,1706905843444,-53.56493988,0.00027397,2]
[313189403,1706905843453,-1873.09,0.00027397,2]
[313189405,1706905843463,-500.0,0.00027397,2]
[313189407,1706905843472,-500.0,0.00027397,2]
[313189409,1706905843481,-500.0,0.00027397,2]
[313189411,1706905843489,-500.0,0.00027397,2]
[313189413,1706905843498,-500.0,0.00027397,2]
[313189415,1706905843509,-3082.87,0.00027397,2]
[313189417,1706905843519,-500.0,0.00027397,2]
[313189419,1706905843528,-1903.02276094,0.00027397,2]
[313189578,1706905849070,-155.0294556,0.00024902,4]
[313189579,1706905849080,-237.55723906,0.00027397,2]
[313189580,1706905849090,-500.0,0.00027397,2]
[313189581,1706905849099,-500.0,0.00027397,2]
[313189582,1706905849108,-500.0,0.00027397,2]
[313189583,1706905849117,-500.0,0.00027397,2]
[313189584,1706905849128,-500.0,0.00027397,2]
[313189585,1706905849137,-500.0,0.00027397,2]